{"text_format":"2","workbook":"xlsx","n_sheets":13,"sheets":["LISEZ-MOI","List of dropdown","1 Informations générales","2 Équipements et actifs","3 Recettes cultures & élévage","4 Autres recettes","5 Financement","6 Coûts Fixes et Variables","Graph table","7 Compte de résultat","Calcul des prix des cultures","Contrôle rapide","Feuille de traduction"],"not_rendered":{"charts":1,"images":13,"macros":0,"external_links":0,"defined_names":130,"comments":1,"pivot_tables":0},"unopened":[],"bounds":{"document_bytes":16777216,"sheet_cells":100000,"run_cost":"one","rows_first":2000,"rows_last":500,"rows_between":2000,"halvings":0,"cell_chars":16384,"cell_head_chars":4096},"cells_cut":0,"cells_raw":0,"read":"whole","date_system":"1900"}

{"sheet":"LISEZ-MOI","index":0,"n_rows":109,"n_cols":7,"rows_kept":109,"cut":false,"hidden":false,"merged":[[10,3,10,9],[15,3,15,9],[17,3,17,9],[25,3,25,9],[35,3,35,9],[37,3,38,5],[37,6,38,9],[49,3,50,5],[49,6,50,9],[39,3,40,5],[39,6,40,9],[61,3,61,9],[41,3,43,5],[51,6,52,9],[51,3,52,5],[47,3,48,5],[47,6,48,9],[53,6,54,9],[53,3,54,5],[55,6,57,9],[55,3,57,5],[59,0,59,9],[62,5,62,6],[63,3,64,4],[63,5,64,9],[65,3,65,4],[65,5,65,7],[72,3,83,9],[85,3,98,9],[100,3,106,9],[108,3,108,5],[18,3,23,9],[44,6,46,9],[44,3,46,5],[41,6,43,9],[66,3,66,4],[66,5,66,9],[67,3,69,4],[67,5,68,9],[69,5,69,7],[70,3,70,4],[70,5,70,7],[62,3,62,4]]}
{"$rows_empty":10}
[null,null,null,"Lisez-moi"]
[]
[]
[]
[]
[null,null,null,"INVESTIR – Outil d’analyse de l’exploitation agricole"]
[]
[null,null,null,"Introduction"]
[null,null,null,"Cet outil permet d’évaluer la productivité et la rentabilité d’une exploitation en se fondant sur sa production agricole annuelle moyenne. Il permet d’établir des valeurs de référence ou d’évaluer l’impact d’investissements prévus. L’outil permet à un conseiller en SPIS (fournisseur, professionnel du développement, agent de vulgarisation) d’aider une exploitation agricole à identifier les coûts inutiles, à déterminer les activités qui apportent le plus de valeur et à bien rentabiliser les différents intrants. "]
[]
[]
[]
[]
[]
[]
[null,null,null,"Conseils et astuces"]
{"$rows_empty":9}
[null,null,null,"Aperçu"]
[null,null,null,"Cet outil est composé des feuilles suivantes :"]
[null,null,null,"1. Informations générales",null,null,"actuellement disponibles sur l’exploitation ou dont l’acquisition prochaine est envisagée"]
[]
[null,null,null,"2. Équipements et actifs",null,null,"actuellement disponibles sur l’exploitation ou dont l’acquisition prochaine est envisagée"]
[]
[null,null,null,"3. Recettes cultures & élévage",null,null,"pour ajouter les ventes réelles ou prévues de cultures saisonnières (riz, maïs etc.), de cultures pluriannuelles (arbres fruitiers, etc.) et d'élevage et de produits dérivés"]
[]
[]
[null,null,null,"4. Autres recettes",null,null,"recettes supplémentaires ne provenant pas directement de la production de cultures ou d’animaux d’élevage, par exemple, la vente d’eau ou la location d’équipements"]
[]
[]
[null,null,null,"5. Financement",null,null,"calcule le remboursement annuel du prêt en fonction de l'information sur le crédit"]
[]
[null,null,null,"6. Coûts Fixes et Variables",null,null,"pour ajouter tous les coûts/dépenses fixes et variables de l'entreprise agricole"]
[]
[null,null,null,"7. Compte de résultat de l’exploitation",null,null,"Pas de saisie ! Calcul de la rentabilité brute de l’exploitation"]
[]
[null,null,null,"Feuille de calcul des prix des cultures",null,null,"pour calculer les coûts annuels moyens de certaines cultures et de certains animaux d’élevage"]
[]
[null,null,null,"Contrôle rapide",null,null,"calcul rapide de la rentabilité de l'exploitation utile avant d'effectuer une analyse complète"]
[]
[]
[]
[]
[]
[null,null,null,"En savoir plus"]
[null,null,null,"Publié par : ",null,"GIZ & FAO"]
[null,null,null,"Responsables :",null,"Propulser l’agriculture : un grand défi énergétique pour le développement. Disponible à l’adresse :  "]
[]
[null,null,null,"Contact: ",null,"Powering.Agriculture@giz.de"]
[null,null,null,"Lien de téléchargement : ",null,"https://energypedia.info/wiki/Toolbox_on_SPIS"]
[null,null,null,"À propos de : ",null,"Propulser l’agriculture : un grand défi énergétique pour le développement. Disponible à l’adresse :  "]
[]
[{"$nulls":5},"https://poweringag.org"]
[null,null,null,"Version:",null,"1.5 (décember 2018)"]
[]
[null,null,null,"La boîte à outils pour les systèmes d’irrigation à énergie solaire (Solar Powered Irrigation Systems, SPIS) ) est rendue possible grâce à l’initiative mondiale « Propulser l’agriculture : un grand défi énergétique pour le développement » (Powering Agriculture: An Energy Grand Challenge for Development – PAEGC). En 2012, l’Agence des États-Unis pour le développement international (USAID), l’Agence suédoise de coopération internationale au développement (SIDA), le ministère fédéral allemand de la Coopération économique et du Développement (BMZ), Duke Energy et l’Overseas Private Investment Cooperation (OPIC) ont mis leurs ressources en commun pour créer l’initiative PAEGC. Cette initiative a pour objectif d’appuyer de nouvelles approches durables afin d’accélérer le développement et le déploiement de solutions énergétiques propres visant à accroître la productivité et/ou la valeur agricole pour les agriculteurs et les agroindustries dans les pays en développement et dans les régions émergentes qui n’ont pas accès à une énergie propre, fiable et abordable. "]
{"$rows_empty":12}
[null,null,null,"Les appellations employées dans ce produit d’information et la présentation des documents qui y figurent n’impliquent de la part de la Deutsche Gesellschaft für Internationale Zusammenarbeit (GIZ) GmbH, de l’Organisation des Nations unies pour l’alimentation et l’agriculture (FAO) ou de l’un des partenaires fondateurs de l’initiative PAEGC aucune prise de position quant au statut juridique ou au stade de développement des pays, territoires, villes ou zones ou de leurs autorités, ni quant au tracé de leurs frontières ou limites. La mention de sociétés déterminées ou de produits de fabricants, qu’ils soient ou non brevetés, n’entraîne de la part de la GIZ, de la FAO ou de l’un des partenaires fondateurs du PAEGC aucune approbation ou recommandation desdits produits de préférence à d’autres de nature analogue qui ne sont pas cités. Les opinions exprimées dans ce produit d’information sont celles de l’auteur et ne reflètent pas nécessairement celles de la GIZ, de la FAO, ou de l’un des partenaires fondateurs du PAEGC."]
{"$rows_empty":14}
[null,null,null,"La GIZ, la FAO et les partenaires fondateurs du PAEGC encouragent l’utilisation, la reproduction et la diffusion des informations contenues dans ce document. Sauf indication contraire, ces dernières peuvent être copiées, téléchargées et imprimées à des fins privées d’étude, de recherche et d’enseignement, ou pour être utilisées dans des produits ou services non commerciaux, à condition que la GIZ et la FAO soient clairement indiquées en tant que sources des informations et détentrices du droit d’auteur."]
{"$rows_empty":7}
[null,null,null,"© GIZ et FAO, 2018"]

{"sheet":"List of dropdown","index":1,"n_rows":19,"n_cols":2,"rows_kept":19,"cut":false,"hidden":true,"merged":[]}
[]
["Superficie","CF à ha"]
["ha",1]
["Acre",2.47105]
["Sq. km",0.01]
["Sq. m",10000]
["Sq. yard",11959.9]
["Sq. ft",107639]
[]
["Facteur de conversion",{"$f":"VLOOKUP('1 Informations générales'!D14,'List of dropdown'!A3:B8,2,FALSE)","v":2.47105}]
[]
[]
["Poids ","CF to kg"]
["kg",1]
["metric ton",1000]
["quintal",100]
["pound (lb)",0.4536]
[]
["Facteur de conversion",{"$f":"VLOOKUP('1 Informations générales'!D15,'List of dropdown'!A14:B17,2,FALSE)","v":1}]

{"sheet":"1 Informations générales","index":2,"n_rows":37,"n_cols":10,"rows_kept":37,"cut":false,"hidden":false,"merged":[[0,0,0,9],[5,7,5,9],[10,2,10,7],[16,1,16,9],[17,1,17,9],[1,1,2,9],[7,2,7,4],[9,2,9,4],[8,2,8,4],[4,2,4,4],[5,2,5,4],[4,7,4,9]]}
["INVESTIR – Outil d’analyse de l’exploitation agricole"]
[null,"1 RENSEIGNEMENTS GÉNÉRAUX SUR L'EXPLOITATION"]
[]
[]
[null,"Pays",{"$nulls":4},"Région"]
[null,"Code ou nom de l’exploitation",{"$nulls":4},"Date"]
[{"$nulls":6},"  "]
[null,"Village"]
[null,"Division"]
[null,"District"]
[null,"Enquêteur"]
[null,"Campagne agricole (années)",null,null,null,"(Année à quatre chiffres chacune ! )"]
[null,"Monnaie utilisée pour les calculs"]
[null,"Unité de mesure de surface",null,"Acre",{"$nulls":4},"Facteur de conversion en 1 hectare :",{"$f":"'List of dropdown'!B10","v":2.47105}]
[null,"Unité de mesure du poids",null,"kg",{"$nulls":4},"Facteur de conversion en 1 kilo :",{"$f":"'List of dropdown'!B19","v":1}]
[]
[]
[null,"RESSOURCES FONCIÈRES"]
[]
[null,"Statut de propriété",null,"Area"]
[null,"+ Terres en propriété",null,null,null,{"$f":"+$D$14","v":"Acre"},"=",null,{"$f":"+E21/$J$14","v":0},"ha"]
[null,"+ Partie des terres coopératives",null,null,null,{"$f":"+$D$14","v":"Acre"},"=",null,{"$f":"+E22/$J$14","v":0},"ha"]
[null,"+ Terres exploitées sous contrat (appartenant à un partenaire)",null,null,null,"Acre","=",null,0,"ha"]
[null,"+ Terres prises en location",null,null,null,"Acre","=",null,0,"ha"]
[null," - Terres données en location",null,null,null,"Acre","=",null,0,"ha"]
[null,"+ Terres en possession d’autres sources",null,null,null,"Acre","=",null,0,"ha"]
[null,"- Terres en propriété inutilisées ou inutilisables",null,null,null,"Acre","=",null,0]
[null,null,null,"Total",{"$f":"+SUM(E21:E24)-E25+E26-E27","v":0},"Acre","=",null,0,"ha"]
[]
[]
[null,"Classification des terres",null,"Superficie","pluviales","irriguées",null,null,"Superficie totale"]
[null,"Terres à cultures saisonnières",{"$nulls":4},{"$f":"+$D$14","v":"Acre"},"=",{"$f":"(+E32+F32)/$J$14","v":0},"ha"]
[null,"Pluriannuelles (avec et sans cultures intercalaires)",{"$nulls":4},"Acre","=",{"$f":"(+E33+F33)/$J$14","v":0},"ha"]
[null,"Serres",{"$nulls":4},"Acre","=",{"$f":"(+E34+F34)/$J$14","v":0},"ha"]
[null,"Pâturages",{"$nulls":4},"Acre","=",{"$f":"(+E35+F35)/$J$14","v":0},"ha"]
[null,"Jachères",null,"Total des terres agricoles/horticoles",null,null,"Acre","=",{"$f":"(+E36+F36)/$J$14","v":0},"ha"]
[null,null,null,"Total des terres agricoles/horticoles",{"$f":"+SUM(E32:E36)","v":0},{"$f":"+SUM(F32:F36)","v":0},"Acre","=",{"$f":"IF((+$I$32+$I$33+$I$34+$I$35+$I$36)=I28,+$I$32+$I$33+$I$34+$I$35+$I$36,\"CHECK Property rights\")","v":0},"ha"]

{"sheet":"2 Équipements et actifs","index":3,"n_rows":38,"n_cols":9,"rows_kept":38,"cut":false,"hidden":false,"merged":[[37,2,37,4],[5,6,8,6],[5,3,8,3],[5,2,8,2],[0,0,0,7],[1,1,1,6],[3,5,3,6],[5,1,9,1],[5,4,8,4],[5,5,8,5]]}
["INVESTIR – Outil d’analyse de l’exploitation agricole"]
[null,"2 ÉQUIPEMENTS ET RESSOURCES"]
[]
[{"$nulls":4},"Code de l’exploitation",{"$f":"'1 Informations générales'!C6","v":0}]
[]
[null,"Type\n\n","Coût de l'équipement existant (au moment de l'achat initial)","Valeur de récupération (lors de la vente d'équipement existant)","Âge","Durée de vie normale","Dépréciation annuelle en vue du remplacement"]
[]
[]
[]
[null,null,{"$f":"'1 Informations générales'!D13","v":0},{"$f":"'1 Informations générales'!D13","v":0},"years","years",{"$f":"'1 Informations générales'!D13","v":0}]
[null,"Hangar pour animaux",{"$nulls":4},{"$f":"IFERROR(SLN(C11,D11,(F11-E11)),\"\")","v":""},"Durée de vie normale indicative :"]
[null,"Veuillez sélectionner",{"$nulls":4},{"$f":"IFERROR(SLN(C12,D12,(F12-E12)),\"\")","v":""},"(très dépendante de la qualité!)","Veuillez sélectionner"]
[null,"Veuillez sélectionner",{"$nulls":4},"","Hangar pour animaux  - 20 years","Hangar pour animaux"]
[null,"Veuillez sélectionner",{"$nulls":4},"","Garage/atelier – 20 ans","garage/atelier"]
[null,"Veuillez sélectionner",{"$nulls":4},"","Stockage/entrepôt – 20 ans","Stockage/entrepôt "]
[null,"Veuillez sélectionner",{"$nulls":4},"","Serre - 10 years","Serre "]
[null,"Veuillez sélectionner",{"$nulls":4},{"$f":"IFERROR(SLN(C17,D17,(F17-E17)),\"\")","v":""},"Autre bâtiment – 20 ans","Autre bâtiment"]
[null,"Veuillez sélectionner",{"$nulls":4},"","Char à bœufs – 7 ans","Char à bœufs"]
[null,"Veuillez sélectionner",{"$nulls":4},"","Camion/voiture – 10 ans","Camion/voiture"]
[null,"Veuillez sélectionner",{"$nulls":4},"","Tracteur – 10 ans","Tracteur"]
[null,"Veuillez sélectionner",{"$nulls":4},"","Charrue – 7 ans","Charrue"]
[null,"Veuillez sélectionner",{"$nulls":4},"","Cultivateur/charrue – 7 ans","Cultivateur/charrue"]
[null,"Veuillez sélectionner",{"$nulls":4},"","Semoir – 7 ans","Semoir"]
[null,"Veuillez sélectionner",{"$nulls":4},"","Épandeur à engrais – 7 ans","Épandeur à engrais"]
[null,"Veuillez sélectionner",{"$nulls":4},"","Pulvérisateur – 7 ans ","Pulvérisateur "]
[null,"Veuillez sélectionner",{"$nulls":4},"","Faucheuse – 7 ans","Faucheuse"]
[null,"Veuillez sélectionner",{"$nulls":4},"","Presse – 7 ans","Presse"]
[null,"Veuillez sélectionner",{"$nulls":4},"","Moissonneuse-batteuse – 10 ans","Moissonneuse-batteuse"]
[{"$nulls":6},"","Matériel d’irrigation – 5 ans","Matériel d’irrigation"]
[{"$nulls":6},"","Pompe à eau – 7 ans","Pompe à eau"]
[{"$nulls":6},"","Modules photovoltaïques - 20 years","Modules photovoltaïques"]
[{"$nulls":6},"",null,"puits/forage"]
[{"$nulls":6},""]
[{"$nulls":6},""]
[{"$nulls":6},""]
[{"$nulls":6},""]
[]
[null,null,"Dépréciation annuelle totale ",null,null,{"$f":"'1 Informations générales'!D13","v":0},{"$f":"+SUM(G11:G36)","v":0}]

{"sheet":"3 Recettes cultures & élévage","index":4,"n_rows":63,"n_cols":15,"rows_kept":63,"cut":false,"hidden":false,"merged":[[30,10,30,14],[32,10,32,12],[33,10,33,12],[34,10,34,12],[35,10,35,12],[62,1,62,5],[0,0,0,6],[35,1,35,6],[40,1,40,2],[40,3,40,6],[38,3,38,4],[1,1,1,6],[3,5,3,6],[7,1,7,6],[19,1,19,6],[23,1,23,6],[18,1,18,5],[34,1,34,5],[56,10,56,12],[54,10,54,14],[57,10,57,12],[58,10,58,12],[61,10,61,12],[59,10,60,14]]}
["INVESTIR – Outil d’analyse de l’exploitation agricole"]
[null,"REVENU : CULTURE SAISONNIÈRE"]
[]
[{"$nulls":4},"Code de l’exploitation",{"$f":"'1 Informations générales'!C6","v":0}]
[]
[null,"Terres agricoles utilisées :",{"$f":"SUM(C10:C14)","v":1},{"$f":"'1 Informations générales'!D14","v":"Acre"}]
[null,null,null,"Unité",{"$f":"\"Rendement par \"& '1 Informations générales'!D14 &\" ou Quantité\"","v":"Rendement par Acre ou Quantité"},"Prix unitaire","Valeur"]
[null,"Ventes"]
[null,"Types de cultures:","Zone:"]
[null,"Tom",1,"kg",null,null,{"$f":"+F10*E10*C10","v":0}]
[{"$nulls":6},{"$f":"+F11*E11*C11","v":0}]
[{"$nulls":6},0]
[{"$nulls":6},0]
[{"$nulls":6},0]
[null,"Produits dérivés:"]
[{"$nulls":6},{"$f":"+F16*E16","v":0}]
[{"$nulls":6},0]
[{"$nulls":6},0]
[null,"REVENU BRUT",{"$nulls":4},{"$f":"SUM(G10:G18)","v":0}]
[null,"REVENU : CULTURE PÉNÉNINIALE"]
[]
[null,"Terres agricoles utilisées :",{"$f":"SUM(C26:C30)","v":0},{"$f":"'1 Informations générales'!D14","v":"Acre"}]
[null,null,null,"Unité",{"$f":"\"Rendement par \"& '1 Informations générales'!D14 &\" ou Quantité\"","v":"Rendement par Acre ou Quantité"},"Prix unitaire","Valeur"]
[null,"Sales"]
[null,"Types de cultures:","Zone:"]
[{"$nulls":6},{"$f":"+F26*E26*C26","v":0}]
[{"$nulls":6},{"$f":"+F27*E27*C27","v":0}]
[{"$nulls":6},0]
[{"$nulls":6},0]
[{"$nulls":6},0]
[null,"Produits dérivés:"]
[{"$nulls":6},{"$f":"+F32*E32","v":0}]
[{"$nulls":6},{"$f":"+F33*E33","v":0}]
[{"$nulls":6},0]
[null,"REVENU BRUT",{"$nulls":4},{"$f":"SUM(G26:G34)","v":0}]
[null,"REVENU : ÉLEVAGE"]
[]
[]
[null,"Bétail pour la production :",{"$f":"SUM(C43:C56)","v":3},"Bétail vendu :",null,{"$f":"SUM(E43:E56)","v":0},"tête "]
[null,null,null,"Unité","Quantité","Prix unitaire","Valeur"]
[null,"Pour la production",null,"A Vendre"]
[null,"Type de bétail","Quantité"]
[null,"Vaches laitières",3,"tête ",null,null,{"$f":"+F43*E43","v":0}]
[null,"Génisses",null,"tête ",null,null,{"$f":"+F44*E44","v":0}]
[null,"Bœufs adultes",null,"tête ",null,null,0]
[null,"Bœufs juvéniles",null,"tête ",null,null,0]
[null,"Veaux",null,"tête ",null,null,0]
[null,"Moutons",null,"tête ",null,null,0]
[null,"Boucs de mouton",null,"tête ",null,null,0]
[null,"Enfants moutons",null,"tête ",null,null,0]
[null,"Chèvre",null,"tête ",null,null,0]
[null,"Boucs de chèvre",null,"tête ",null,null,0]
[null,"Chèvre chevreau",null,"tête ",null,null,0]
[null,"Poulets",null,"tête ",null,null,0]
[{"$nulls":6},0,null,null,null,"Calculateur de produits dérivés"]
[{"$nulls":6},0]
[null,"Produits dérivés:",{"$nulls":8},"Daily egg yield:",null,null,null,{"$f":"IF(K57=\"Daily milk yield:\",\"litres/day\",\"eggs/day\")","v":"eggs/day"}]
[null,"Lait",null,"litres",null,null,{"$f":"+F58*E58","v":0},null,null,null,"Number of chickens:",null,null,null,"tête"]
[null,"Œufs",{"$nulls":4},{"$f":"+F59*E59","v":0},null,null,null,"Days of egg laying per year:",null,null,null,"jours/année"]
[null,"Peaux",{"$nulls":4},{"$f":"+F60*E60","v":0},null,null,null,"Remarque : Les périodes de traite (lactation) varient généralement entre 209 et 305 jours par année pour le bétail laitier."]
[null,"Fumier",{"$nulls":4},{"$f":"+F61*E61","v":0}]
[{"$nulls":6},0,null,null,null,"Total",null,null,{"$f":"N57*N58*N59","v":0},{"$f":"IF(K57=\"Daily milk yield:\",\"litres/year\",\"eggs/year\")","v":"eggs/year"}]
[null,"REVENU BRUT",{"$nulls":4},{"$f":"SUM(G43:G62)","v":0}]

{"sheet":"4 Autres recettes","index":5,"n_rows":15,"n_cols":15,"rows_kept":15,"cut":false,"hidden":false,"merged":[[0,0,0,14],[1,1,1,14],[3,12,3,13],[3,10,3,11]]}
["INVESTIR – Outil d’analyse de l’exploitation agricole"]
[null,"4 AUTRES RECETTES"]
[]
[{"$nulls":10}," Code de l’exploitation",null,{"$f":"'1 Informations générales'!C6","v":0}]
[]
[null,"Mois","Janvier","Février","Mars","Avril","Mai","Juin","Juillet","Août","Septembre","Octobre","Novembre","Décembre","Total"]
[null,"Type AUTRES RECETTES",1,2,3,4,5,6,7,8,9,10,11,12]
[null,"Vente d’eau",{"$nulls":12},{"$f":"+SUM(C8:N8)","v":0}]
[null,"Équipements donnés en location",{"$nulls":12},{"$f":"+SUM(C9:N9)","v":0}]
[null,"Espace de stockage donné en location",{"$nulls":12},{"$f":"+SUM(C10:N10)","v":0}]
[null,"Terres données en location",{"$nulls":12},0]
[null,"Main-d’œuvre donnée en location",{"$nulls":12},{"$f":"+SUM(C12:N12)","v":0}]
[{"$nulls":14},{"$f":"+SUM(C13:N13)","v":0}]
[{"$nulls":14},{"$f":"+SUM(C14:N14)","v":0}]
[null,"TOTAL DES AUTRES RECETTES par mois",{"$f":"+SUM(C8:C14)","v":0},0,0,0,0,0,0,0,0,0,0,0,{"$f":"+SUM(O8:O14)","v":0}]

{"sheet":"5 Financement","index":6,"n_rows":17,"n_cols":11,"rows_kept":17,"cut":false,"hidden":false,"merged":[[0,0,0,13],[1,0,1,13],[4,8,7,8],[5,0,7,0],[5,1,7,1],[5,2,7,2],[5,3,7,3],[5,4,7,4],[5,5,7,5],[5,6,7,6],[5,9,15,13],[3,10,3,12],[4,0,4,6]]}
["INVESTIR – Outil d’analyse de l’exploitation agricole"]
["CRÉDIT ET FINANCEMENT (calculateur simplifié, à confirmer auprès du prêteur)"]
[]
[{"$nulls":9},"Code de l’exploitation",{"$f":"'1 Informations générales'!C6","v":0}]
["Calculateur",{"$nulls":7},"Saisissez manuellement :"]
["Nom de la banque","Montant du prêt","Période de crédit (années)","Mois de la prise de crédit","Année de prise de crédit","Taux d'intérêt annuel","Remboursement mensuel du prêt",null,null,"Remarque : la valeur de la calculatrice aura priorité sur la valeur manuelle. Assurez-vous que la valeur de la calculatrice est 0 afin d'utiliser la valeur manuelle."]
[{"$nulls":7},"OR"]
[]
[{"$nulls":6},{"$f":"IF(D9,-PMT(F9/12,C9*12,B9),\"0\")","v":"0"}]
[{"$nulls":6},{"$f":"IF(D10,-PMT(F10/12,C10*12,B10),\"0\")","v":"0"}]
[{"$nulls":6},{"$f":"IF(D11,-PMT(F11/12,C11*12,B11),\"0\")","v":"0"}]
[{"$nulls":6},"0"]
[{"$nulls":6},"0"]
[{"$nulls":6},"0"]
[{"$nulls":6},"0"]
["TOTAL DU CRÉDIT",{"$f":"SUM(B9:B15)","v":0},{"$nulls":4},{"$f":"SUM(G9:G15)","v":0},null,{"$f":"SUM(I9:I14)","v":0}]
[null,null,null,"Total des remboursements annuels des prêts",null,null,{"$f":"G16*12","v":0},null,{"$f":"I16*12","v":0}]

{"sheet":"6 Coûts Fixes et Variables","index":7,"n_rows":39,"n_cols":15,"rows_kept":39,"cut":false,"hidden":false,"merged":[[5,1,6,1],[20,1,20,14],[0,0,0,14],[3,12,3,13],[1,1,1,14],[2,1,4,3]]}
["INVESTIR – Outil d’analyse de l’exploitation agricole"]
[null,"6 COÛTS (FIXES et VARIABLES)"]
[]
[{"$nulls":11},"Code de l’exploitation",{"$f":"'1 Informations générales'!C6","v":0}]
[]
[null,"Mois","Janvier","Février","Mars","Avril","Mai","Juin","Juillet","Août","Septembre","Octobre","Novembre","Décembre","Total"]
[null,null,1,2,3,4,5,6,7,8,9,10,11,12]
[null,"COÛTS FIXES"]
[null,"Frais de financement",{"$f":"'5 Financement'!$G$16","v":0},{"$f":"'5 Financement'!$G$16","v":0},{"$f":"'5 Financement'!$G$16","v":0},{"$f":"'5 Financement'!$G$16","v":0},{"$f":"'5 Financement'!$G$16","v":0},{"$f":"'5 Financement'!$G$16","v":0},{"$f":"'5 Financement'!$G$16","v":0},{"$f":"'5 Financement'!$G$16","v":0},{"$f":"'5 Financement'!$G$16","v":0},{"$f":"'5 Financement'!$G$16","v":0},{"$f":"'5 Financement'!$G$16","v":0},{"$f":"'5 Financement'!$G$16","v":0},{"$f":"+SUM(C9:N9)","v":0}]
[null,"Coûts d'amortissement",{"$f":"'2 Équipements et actifs'!$G$38/12","v":0},{"$f":"'2 Équipements et actifs'!$G$38/12","v":0},{"$f":"'2 Équipements et actifs'!$G$38/12","v":0},{"$f":"'2 Équipements et actifs'!$G$38/12","v":0},{"$f":"'2 Équipements et actifs'!$G$38/12","v":0},{"$f":"'2 Équipements et actifs'!$G$38/12","v":0},{"$f":"'2 Équipements et actifs'!$G$38/12","v":0},{"$f":"'2 Équipements et actifs'!$G$38/12","v":0},{"$f":"'2 Équipements et actifs'!$G$38/12","v":0},{"$f":"'2 Équipements et actifs'!$G$38/12","v":0},{"$f":"'2 Équipements et actifs'!$G$38/12","v":0},{"$f":"'2 Équipements et actifs'!$G$38/12","v":0},{"$f":"+SUM(C10:N10)","v":0}]
[null,"Cotisations des membres ",{"$nulls":12},{"$f":"+SUM(C11:N11)","v":0}]
[null,"Frais d'assurance",{"$nulls":12},{"$f":"+SUM(C12:N12)","v":0}]
[null,"Impôt foncier",{"$nulls":12},0]
[null,"Cotisation au Fonds social",{"$nulls":12},{"$f":"+SUM(C14:N14)","v":0}]
[null,"Frais de location d'équipement",{"$nulls":12},0]
[null,"Frais de location du terrain",{"$nulls":12},{"$f":"+SUM(C16:N16)","v":0}]
[null,"-",{"$nulls":12},{"$f":"+SUM(C17:N17)","v":0}]
[null,"-",{"$nulls":12},0]
[null,"TOTAL DES FRAIS FIXES par mois",{"$f":"+SUM(C9:C18)","v":0},{"$f":"+SUM(D9:D18)","v":0},0,0,0,0,0,0,0,0,0,0,{"$f":"+SUM(O9:O18)","v":0}]
[]
[null,"FRAIS VARIABLES"]
[null,"Coûts du carburant et du gaz",{"$nulls":12},{"$f":"+SUM(C22:N22)","v":0}]
[null,"Frais d'eau",{"$nulls":12},{"$f":"+SUM(C23:N23)","v":0}]
[null,"Frais d'électricité",{"$nulls":12},0]
[null,"Frais de transport ",{"$nulls":12},0]
[null,"Coûts salariaux (personnel permanent)",{"$nulls":12},0]
[null,"Coûts salariaux (personnel temporaire)",{"$nulls":12},0]
[null,"Semences",{"$nulls":12},0]
[null,"Fumier et engrais",{"$nulls":12},0]
[null,"Protection des végétaux",{"$nulls":12},0]
[null,"Fourrage",{"$nulls":12},0]
[null,"Services vétérinaires",{"$nulls":12},0]
[null,"\nLocation traction et mécanisation",{"$nulls":12},0]
[null,"Réparation et entretien de machines",{"$nulls":12},0]
[null,"Réparation et entretien de l'infrastructure",{"$nulls":12},0]
[null,"Réparation et entretien de l'irrigation",{"$nulls":12},{"$f":"+SUM(C36:N36)","v":0}]
[null,"-",{"$nulls":12},0]
[null,"-",{"$nulls":12},0]
[null,"FRAIS VARIABLES par mois",{"$f":"+SUM(C22:C38)","v":0},0,0,0,0,0,0,0,0,0,0,0,0]

{"sheet":"Graph table","index":8,"n_rows":33,"n_cols":3,"rows_kept":33,"cut":false,"hidden":true,"merged":[]}
[]
[]
[]
[]
[]
[]
["FIXED COSTS",{"$f":"'6 Coûts Fixes et Variables'!B9","v":"Frais de financement"},{"$f":"'6 Coûts Fixes et Variables'!O9","v":0}]
[null,{"$f":"'6 Coûts Fixes et Variables'!B10","v":"Coûts d'amortissement"},{"$f":"'6 Coûts Fixes et Variables'!O10","v":0}]
[null,{"$f":"'6 Coûts Fixes et Variables'!B11","v":"Cotisations des membres "},{"$f":"'6 Coûts Fixes et Variables'!O11","v":0}]
[null,{"$f":"'6 Coûts Fixes et Variables'!B12","v":"Frais d'assurance"},{"$f":"'6 Coûts Fixes et Variables'!O12","v":0}]
[null,{"$f":"'6 Coûts Fixes et Variables'!B13","v":"Impôt foncier"},{"$f":"'6 Coûts Fixes et Variables'!O13","v":0}]
[null,{"$f":"'6 Coûts Fixes et Variables'!B14","v":"Cotisation au Fonds social"},{"$f":"'6 Coûts Fixes et Variables'!O14","v":0}]
[null,{"$f":"'6 Coûts Fixes et Variables'!B15","v":"Frais de location d'équipement"},{"$f":"'6 Coûts Fixes et Variables'!O15","v":0}]
[null,{"$f":"'6 Coûts Fixes et Variables'!B16","v":"Frais de location du terrain"},{"$f":"'6 Coûts Fixes et Variables'!O16","v":0}]
[null,{"$f":"'6 Coûts Fixes et Variables'!B17","v":"-"},{"$f":"'6 Coûts Fixes et Variables'!O17","v":0}]
[null,{"$f":"'6 Coûts Fixes et Variables'!B18","v":"-"},{"$f":"'6 Coûts Fixes et Variables'!O18","v":0}]
[{"$f":"'6 Coûts Fixes et Variables'!B21","v":"FRAIS VARIABLES"},{"$f":"'6 Coûts Fixes et Variables'!B22","v":"Coûts du carburant et du gaz"},{"$f":"'6 Coûts Fixes et Variables'!O22","v":0}]
[null,{"$f":"'6 Coûts Fixes et Variables'!B23","v":"Frais d'eau"},{"$f":"'6 Coûts Fixes et Variables'!O23","v":0}]
[null,{"$f":"'6 Coûts Fixes et Variables'!B24","v":"Frais d'électricité"},{"$f":"'6 Coûts Fixes et Variables'!O24","v":0}]
[null,{"$f":"'6 Coûts Fixes et Variables'!B25","v":"Frais de transport "},{"$f":"'6 Coûts Fixes et Variables'!O25","v":0}]
[null,{"$f":"'6 Coûts Fixes et Variables'!B26","v":"Coûts salariaux (personnel permanent)"},{"$f":"'6 Coûts Fixes et Variables'!O26","v":0}]
[null,{"$f":"'6 Coûts Fixes et Variables'!B27","v":"Coûts salariaux (personnel temporaire)"},{"$f":"'6 Coûts Fixes et Variables'!O27","v":0}]
[null,{"$f":"'6 Coûts Fixes et Variables'!B28","v":"Semences"},{"$f":"'6 Coûts Fixes et Variables'!O28","v":0}]
[null,{"$f":"'6 Coûts Fixes et Variables'!B29","v":"Fumier et engrais"},{"$f":"'6 Coûts Fixes et Variables'!O29","v":0}]
[null,{"$f":"'6 Coûts Fixes et Variables'!B30","v":"Protection des végétaux"},{"$f":"'6 Coûts Fixes et Variables'!O30","v":0}]
[null,{"$f":"'6 Coûts Fixes et Variables'!B31","v":"Fourrage"},{"$f":"'6 Coûts Fixes et Variables'!O31","v":0}]
[null,{"$f":"'6 Coûts Fixes et Variables'!B32","v":"Services vétérinaires"},{"$f":"'6 Coûts Fixes et Variables'!O32","v":0}]
[null,{"$f":"'6 Coûts Fixes et Variables'!B33","v":"\nLocation traction et mécanisation"},{"$f":"'6 Coûts Fixes et Variables'!O33","v":0}]
[null,{"$f":"'6 Coûts Fixes et Variables'!B34","v":"Réparation et entretien de machines"},{"$f":"'6 Coûts Fixes et Variables'!O34","v":0}]
[null,{"$f":"'6 Coûts Fixes et Variables'!B35","v":"Réparation et entretien de l'infrastructure"},{"$f":"'6 Coûts Fixes et Variables'!O35","v":0}]
[null,{"$f":"'6 Coûts Fixes et Variables'!B36","v":"Réparation et entretien de l'irrigation"},{"$f":"'6 Coûts Fixes et Variables'!O36","v":0}]
[null,{"$f":"'6 Coûts Fixes et Variables'!B37","v":"-"},{"$f":"'6 Coûts Fixes et Variables'!O37","v":0}]
[null,{"$f":"'6 Coûts Fixes et Variables'!B38","v":"-"},{"$f":"'6 Coûts Fixes et Variables'!O38","v":0}]

{"sheet":"7 Compte de résultat","index":9,"n_rows":64,"n_cols":10,"rows_kept":64,"cut":false,"hidden":false,"merged":[[63,3,63,7],[1,1,1,8],[3,6,3,7],[0,0,0,8],[57,3,57,5],[59,3,59,4],[60,3,60,4],[61,3,61,4],[62,3,62,4],[59,5,59,6],[60,5,60,6],[61,5,61,6],[62,5,62,6]]}
["INVESTIR – Outil d’analyse de l’exploitation agricole"]
[null,"7 COMPTE DE RÉSULTAT DE L’EXPLOITATION"]
[]
[{"$nulls":5},"Code de l’exploitation",{"$f":"'1 Informations générales'!C6","v":0}]
[]
[null,null,"+","Valeur brute de production de cultures saisonnières",{"$f":"SUM('3 Recettes cultures & élévage'!G10:G14)","v":0},{"$f":"'1 Informations générales'!$D$13","v":0},"+",{"$f":"IF($E$16=0,0,(+E6/$E$16)*(1-$E$14))","v":0}]
[null,null,"+","Valeur brute de production de produits dérivés des cultures saisonnières",{"$f":"SUM('3 Recettes cultures & élévage'!G16:G18)","v":0},{"$f":"'1 Informations générales'!$D$13","v":0},"+",{"$f":"IF($E$16=0,0,(+E7/$E$16)*(1-$E$14))","v":0}]
[null,null,"+","Valeur brute de production de cultures pluriannuelles",{"$f":"SUM('3 Recettes cultures & élévage'!G26:G30)","v":0},{"$f":"'1 Informations générales'!$D$13","v":0},"+",0]
[null,null,"+","Valeur brute de production de produits dérivés des cultures pluriannuelles",{"$f":"SUM('3 Recettes cultures & élévage'!G32:G34)","v":0},{"$f":"'1 Informations générales'!$D$13","v":0},"+",0]
[null,null,"+","Valeur brute de production d’animaux d’élevage : ",{"$f":"SUM('3 Recettes cultures & élévage'!G43:G56)","v":0},{"$f":"'1 Informations générales'!$D$13","v":0},"+",0]
[null,null,"+","Valeur brute de production de produits dérivés d’animaux d’élevage ",{"$f":"SUM('3 Recettes cultures & élévage'!G58:G62)","v":0},{"$f":"'1 Informations générales'!$D$13","v":0},"+",0]
[null,null,"+","Valeur brute des autres recettes : ",{"$f":"'4 Autres recettes'!O15","v":0},{"$f":"'1 Informations générales'!$D$13","v":0},"+",0]
[]
[null,null,"-","Pertes anticipées sur le total des ventes (facteur de réduction)",0.1,"%"]
[]
[null,null,"=","REVENU BRUT DE L’EXPLOITATION",{"$f":"SUM(E6:E12)-(SUM(E6:E12)*E14)","v":0},{"$f":"'1 Informations générales'!$D$13","v":0},"=",{"$f":"SUM(H6:H12)","v":0}]
[]
[]
[null,null,"-","Total des coûts fixes",{"$f":"'6 Coûts Fixes et Variables'!O19","v":0},{"$f":"'1 Informations générales'!$D$13","v":0},"+",{"$f":"IF($E$21=0,0,+E19/$E$21)","v":0}]
[null,null,"-","Total des coûts variables",{"$f":"'6 Coûts Fixes et Variables'!O39","v":0},{"$f":"'1 Informations générales'!$D$13","v":0},"+",{"$f":"IF($E$21=0,0,+E20/$E$21)","v":0}]
[null,null,"=","TOTAL DES COÛTS",{"$f":"SUM(E19:E20)","v":0},{"$f":"'1 Informations générales'!$D$13","v":0},"=",{"$f":"SUM(H19:H20)","v":0}]
{"$rows_empty":35}
[null,null,"=",{"$f":"\"RÉSULTAT BRUT DE LA FERME pour la période \"  &   '1 Informations générales'!D12","v":"RÉSULTAT BRUT DE LA FERME pour la période "},{"$f":"\"to \" & '1 Informations générales'!E12","v":"to "},null,{"$f":"E16-E21","v":0},{"$f":"'1 Informations générales'!$D$13","v":0}]
[null,null,null,"Marge bénéficiaire de l’exploitation ",null,null,{"$f":"(E16-E21)/E16","v":{"$error":"#DIV/0!"}}]
[]
[null,null,null,{"$f":"\"bénéfice moyen par \"&'1 Informations générales'!$D$14&\" des cultures saisonnières:\"","v":"bénéfice moyen par Acre des cultures saisonnières:"},null,{"$f":"IFERROR('3 Recettes cultures & élévage'!G19/'3 Recettes cultures & élévage'!C6,\"no crops\")","v":0},null,{"$f":"'1 Informations générales'!$D$13&\" per\"&\" \"&'1 Informations générales'!$D$14","v":" per Acre"}]
[null,null,null,{"$f":"\"bénéfice moyen par \"&'1 Informations générales'!D14&\" de cultures pérennes:\"","v":"bénéfice moyen par Acre de cultures pérennes:"},null,{"$f":"IFERROR('3 Recettes cultures & élévage'!G35/'3 Recettes cultures & élévage'!C22,\"no crops\")","v":"no crops"},null,{"$f":"'1 Informations générales'!$D$13&\" per\"&\" \"&'1 Informations générales'!$D$14","v":" per Acre"}]
[null,null,null,"bénéfice moyen par tête de bétail :",null,{"$f":"IFERROR(('3 Recettes cultures & élévage'!G63+'3 Recettes cultures & élévage'!F39)/'3 Recettes cultures & élévage'!C39,\"no livestock\")","v":0},null,{"$f":"'1 Informations générales'!$D$13&\" per head\"","v":" per head"}]
[null,null,null,"superficie totale en culture :",null,{"$f":"'3 Recettes cultures & élévage'!C6+'3 Recettes cultures & élévage'!C22","v":1},null,{"$f":"'1 Informations générales'!D14","v":"Acre"},null,{"$f":"SUM('1 Informations générales'!I32:I36)-F63","v":-1}]
[null,null,null,{"$f":"IF(J63<0,\"Cultivated area does not match available crop area (1. General Information)\",\"\")","v":"Cultivated area does not match available crop area (1. General Information)"}]

{"sheet":"Calcul des prix des cultures","index":10,"n_rows":45,"n_cols":14,"rows_kept":45,"cut":false,"hidden":false,"merged":[[1,0,1,13],[4,0,4,13],[14,0,14,13],[24,0,24,13],[0,0,0,13]]}
["INVESTIR – Outil d’analyse de l’exploitation agricole"]
["Feuille supplémentaire permettant de calculer les coûts annuels moyens de certaines cultures et de certains animaux d’élevage sur la base des variations mensuelles saisonnières"]
[null,"Janvier","Février","Mars","Avril","Mai","Juin","Juillet","Août","Septembre","Octobre","Novembre","Décembre","MOYENNE"]
[null,"Prix unitaire","Prix unitaire","Prix unitaire","Prix unitaire","Prix unitaire","Prix unitaire","Prix unitaire","Prix unitaire","Prix unitaire","Prix unitaire","Prix unitaire","Prix unitaire","Prix unitaire"]
["Cultures saisonnières"]
[{"$f":"'3 Recettes cultures & élévage'!B10","v":"Tom"},{"$nulls":12},{"$f":"AVERAGE(B6:M6)","v":{"$error":"#DIV/0!"}}]
[{"$f":"'3 Recettes cultures & élévage'!B11","v":0},{"$nulls":12},{"$f":"AVERAGE(B7:M7)","v":{"$error":"#DIV/0!"}}]
[{"$f":"'3 Recettes cultures & élévage'!B12","v":0},{"$nulls":12},{"$error":"#DIV/0!"}]
[{"$f":"'3 Recettes cultures & élévage'!B13","v":0},{"$nulls":12},{"$error":"#DIV/0!"}]
[{"$f":"'3 Recettes cultures & élévage'!B14","v":0},{"$nulls":12},{"$error":"#DIV/0!"}]
[{"$f":"'3 Recettes cultures & élévage'!B15","v":"Produits dérivés:"}]
[{"$f":"'3 Recettes cultures & élévage'!B16","v":0},{"$nulls":12},{"$error":"#DIV/0!"}]
[{"$f":"'3 Recettes cultures & élévage'!B17","v":0},{"$nulls":12},{"$error":"#DIV/0!"}]
[{"$f":"'3 Recettes cultures & élévage'!B18","v":0},{"$nulls":12},{"$error":"#DIV/0!"}]
["Cultures pluriannuelles"]
[{"$f":"'3 Recettes cultures & élévage'!B26","v":0},{"$nulls":12},{"$error":"#DIV/0!"}]
[{"$f":"'3 Recettes cultures & élévage'!B27","v":0},{"$nulls":12},{"$error":"#DIV/0!"}]
[{"$f":"'3 Recettes cultures & élévage'!B28","v":0},{"$nulls":12},{"$error":"#DIV/0!"}]
[{"$f":"'3 Recettes cultures & élévage'!B29","v":0},{"$nulls":12},{"$error":"#DIV/0!"}]
[{"$f":"'3 Recettes cultures & élévage'!B30","v":0},{"$nulls":12},{"$error":"#DIV/0!"}]
[{"$f":"'3 Recettes cultures & élévage'!B31","v":"Produits dérivés:"}]
[{"$f":"'3 Recettes cultures & élévage'!B32","v":0},{"$nulls":12},{"$error":"#DIV/0!"}]
[{"$f":"'3 Recettes cultures & élévage'!B33","v":0},{"$nulls":12},{"$error":"#DIV/0!"}]
[{"$f":"'3 Recettes cultures & élévage'!B34","v":0},{"$nulls":12},{"$error":"#DIV/0!"}]
["Animaux d’élevage"]
[{"$f":"'3 Recettes cultures & élévage'!B43","v":"Vaches laitières"},{"$nulls":12},{"$error":"#DIV/0!"}]
[{"$f":"'3 Recettes cultures & élévage'!B44","v":"Génisses"},{"$nulls":12},{"$error":"#DIV/0!"}]
[{"$f":"'3 Recettes cultures & élévage'!B45","v":"Bœufs adultes"},{"$nulls":12},{"$error":"#DIV/0!"}]
[{"$f":"'3 Recettes cultures & élévage'!B46","v":"Bœufs juvéniles"},{"$nulls":12},{"$error":"#DIV/0!"}]
[{"$f":"'3 Recettes cultures & élévage'!B47","v":"Veaux"},{"$nulls":12},{"$error":"#DIV/0!"}]
[{"$f":"'3 Recettes cultures & élévage'!B48","v":"Moutons"},{"$nulls":12},{"$error":"#DIV/0!"}]
[{"$f":"'3 Recettes cultures & élévage'!B49","v":"Boucs de mouton"},{"$nulls":12},{"$error":"#DIV/0!"}]
[{"$f":"'3 Recettes cultures & élévage'!B50","v":"Enfants moutons"},{"$nulls":12},{"$error":"#DIV/0!"}]
[{"$f":"'3 Recettes cultures & élévage'!B51","v":"Chèvre"},{"$nulls":12},{"$error":"#DIV/0!"}]
[{"$f":"'3 Recettes cultures & élévage'!B52","v":"Boucs de chèvre"},{"$nulls":12},{"$error":"#DIV/0!"}]
[{"$f":"'3 Recettes cultures & élévage'!B53","v":"Chèvre chevreau"},{"$nulls":12},{"$error":"#DIV/0!"}]
[{"$f":"'3 Recettes cultures & élévage'!B54","v":"Poulets"},{"$nulls":12},{"$error":"#DIV/0!"}]
[{"$f":"'3 Recettes cultures & élévage'!B55","v":0},{"$nulls":12},{"$error":"#DIV/0!"}]
[{"$f":"'3 Recettes cultures & élévage'!B56","v":0},{"$nulls":12},{"$error":"#DIV/0!"}]
[{"$f":"'3 Recettes cultures & élévage'!B57","v":"Produits dérivés:"}]
[{"$f":"'3 Recettes cultures & élévage'!B58","v":"Lait"},{"$nulls":12},{"$error":"#DIV/0!"}]
[{"$f":"'3 Recettes cultures & élévage'!B59","v":"Œufs"},{"$nulls":12},{"$error":"#DIV/0!"}]
[{"$f":"'3 Recettes cultures & élévage'!B60","v":"Peaux"},{"$nulls":12},{"$error":"#DIV/0!"}]
[{"$f":"'3 Recettes cultures & élévage'!B61","v":"Fumier"},{"$nulls":12},{"$error":"#DIV/0!"}]
[{"$f":"'3 Recettes cultures & élévage'!B62","v":0},{"$nulls":12},{"$error":"#DIV/0!"}]

{"sheet":"Contrôle rapide","index":11,"n_rows":33,"n_cols":9,"rows_kept":33,"cut":false,"hidden":false,"merged":[[0,0,0,3],[1,1,1,3],[32,1,32,3],[6,5,6,8],[33,2,33,3],[4,1,4,3],[18,1,18,3]]}
["INVESTIR – Outil d’analyse de l’exploitation agricole"]
[null,"Contrôle rapide"]
[]
[]
[null,"Dépenses annuelles"]
[null,"Nature de la dépense","Exemples","Montant annuel"]
[null,"Coûts des cultures saisonnières","Semis, pesticides, engrais, protection, etc.",null,null,"Calculatrice"]
[null,"Dépenses liées aux cultures pérennes","Semis, pesticides, engrais, protection, etc.",null,null,null,"additionner :","multiplier :","diviser :"]
[null,"Dépenses liées au bétail ","Nouveau bétail, fourrage, abattage, services vétérinaires, etc.",null,null,"a."]
[null,"Exploitation et maintenance \n- Infrastructure","Rénovations de bâtiments, peinture, plâtrage, clôtures, électricité, eau, etc. ",null,null,"b."]
[null,"Exploitation et maintenance\n- Équipements fixes\n","Pompes à eau, matériel d'irrigation, matériel d'emballage, broyage, carburant, pièces de rechange, réparations, etc.",null,null,"c."]
[null,"Exploitation et maintenance \n- Équipement mobile","Tracteur, camions, charrue, remorque, carburant, pièces de rechange, réparations, etc.",null,null,"d."]
[null,"Main-d'œuvre","Salaires, avantages sociaux, salaire propre etc.",null,null,"e."]
[null,"Vente et distribution","Emballage, frais, publicité, etc.",null,null,"Total",{"$f":"SUM(G9:G13)","v":0},{"$f":"H9*H10","v":0},{"$f":"I9/I10","v":{"$error":"#DIV/0!"}}]
[null,"Gestion et administration","Loyer, consommables de bureau, assurances, adhésions, remboursements de prêts, etc."]
[]
[null,null,null,{"$f":"SUM(D7:D16)","v":0}]
[]
[null,"Revenu annuel"]
[null,"Type de revenu","Exemples","Montant annuel"]
[null,"Ventes de cultures saisonnières","Tomates, céréales, riz, produits à valeur ajoutée, etc.\n"]
[null,"Produits dérivés des cultures saisonnières","Compost, fourrage, produit à valeur ajoutée, etc."]
[null,"Ventes de cultures pérennes","Agrumes, pommes, dattes, baies, produits à valeur ajoutée, etc."]
[null,"Produits dérivés des cultures pérennes","Bois de chauffage, paillis, produits à valeur ajoutée, etc."]
[null,"Ventes de bétail","Bovins, moutons, poulets, etc."]
[null,"Produits dérivés de l'élevage\n","Fumier, œufs, lait, laine, produit à valeur ajoutée, etc."]
[null,"Revenus de location","Main-d'œuvre, véhicules, terrains, etc."]
[null,"Revenus des services","Sous-traitance, service d'entretien, service d'emballage, transport, etc."]
[]
[null,null,null,{"$f":"SUM(D21:D29)","v":0}]
[]
[null,null,"Profit ou perte",{"$f":"D30-D17","v":0}]
[null,{"$f":"IF(D32>0,\"You are profitable! Proceed with detailed analysis to be sure.\",(IF(D32<0,\"You are making a loss. Review your values or consider additional income opportunities or means to reduce expenses.\",\"\")))","v":""}]

{"sheet":"Feuille de traduction","index":12,"n_rows":23,"n_cols":3,"rows_kept":23,"cut":false,"hidden":false,"merged":[[1,0,1,2],[4,0,4,4]]}
[null,"  "]
["Feuille de traduction"]
[]
["Introduction"]
["Certains textes utilisés dans cet outil sont utilisés dans des formules qui utilisent la reconnaissance de texte. Afin de préserver l'intégrité et la fonctionnalité de la formule, ces textes resteront en anglais. Une liste de ces textes et leur traduction correspondante est compilée ci-dessous :"]
["Texte original en anglais","Feuille","Traduction française"]
["Acre","1. Informations générales","acre"]
["ha","1. Informations générales","hectare"]
["kg","1. Informations générales","kilo"]
["metric ton","1. Informations générales","tonne métrique "]
["no crops","7. Compte de résultat de l’exploitation","pas de cultures"]
["pound (lb)","1. Informations générales","livres"]
["quintal","1. Informations générales","quintal"]
["Sq. feet ","1. Informations générales","pieds carrés"]
["Sq. yard","1. Informations générales","cour carrée"]
["Sq.km","1. Informations générales","kilomètre carré"]
["Sq.m","1. Informations générales","mètre carré"]
["Daily egg yield","3 Recettes cultures & élévage","Rendement journalier en œufs"]
["Daily milk yield","3 Recettes cultures & élévage","Rendement quotidien en lait"]
["Number of chickens","3 Recettes cultures & élévage","Nombre de poulets"]
["Number of dairy livestock","3 Recettes cultures & élévage","Nombre d'animaux laitiers"]
["eggs/day","3 Recettes cultures & élévage","oeufs/jour"]
["Number of egg laying per year","3 Recettes cultures & élévage","Nombre de ponte par an"]